bitfinex/quotes_BTCUSD_20211001
["timestamp","ask_amount","ask_price","bid_price","bid_amount"]
[1633106925672,0.00124493,47512.0,47511.0,0.21736916]
[1633106926874,0.00132407,47512.0,47511.0,0.21736916]
[1633106927674,0.00132407,47512.0,47511.0,7.216e-05]
[1633106928075,0.00132407,47512.0,47511.0,0.21736916]
[1633106929074,0.17925468,47512.0,47511.0,0.21736916]
[1633106929675,0.17925468,47512.0,47511.0,7.216e-05]
[1633106930075,0.26429313,47512.0,47511.0,7.216e-05]
[1633106930278,0.81468047,47512.0,47511.0,7.216e-05]
[1633106930476,0.81521057,47512.0,47511.0,7.216e-05]
[1633106930678,3.63103957,47512.0,47511.0,1.216e-05]
[1633106931279,1.13103957,47512.0,47511.0,1.216e-05]
[1633106931479,2.26963957,47512.0,47511.0,1.216e-05]
[1633106931679,2.27085499,47512.0,47511.0,1.216e-05]
[1633106931879,3.12085499,47512.0,47511.0,1.216e-05]
[1633106932076,2.27085499,47512.0,47511.0,1.216e-05]
[1633106932674,2.77085499,47512.0,47511.0,1.216e-05]
[1633106933177,1.05725234,47512.0,47511.0,1.216e-05]
[1633106933376,1.05672224,47512.0,47511.0,1.216e-05]
[1633106933775,0.55725234,47512.0,47511.0,1.216e-05]
[1633106935179,0.55725234,47512.0,47506.0,0.00076285]
[1633106935180,2.5012278,47511.0,47506.0,0.00076285]
[1633106935379,0.00124654,47507.0,47506.0,0.00076285]
[1633106935582,0.71030618,47507.0,47506.0,0.00076285]
[1633106935778,0.71030618,47507.0,47506.0,0.00084705]
[1633106936185,0.80861942,47507.0,47506.0,0.00084705]
[1633106936385,0.80995677,47507.0,47506.0,0.00084705]
[1633106937582,0.80997781,47507.0,47505.0,0.07584705]
[1633106938582,1.75127517,47506.0,47505.0,0.07584705]
[1633106938784,0.21857217,47506.0,47505.0,0.07584705]
[1633106939785,0.21857445,47506.0,47505.0,0.07584705]
[1633106940986,0.21860939,47506.0,47505.0,0.07584705]
[1633106942048,0.21857496,47506.0,47505.0,0.07584705]
[1633106942648,0.00127796,47506.0,47505.0,0.07584705]
[1633106943247,0.21853297,47506.0,47505.0,0.07584705]
[1633106944454,0.21856591,47506.0,47505.0,0.07584705]
[1633106944656,0.21985006,47506.0,47505.0,0.07584705]
[1633106944856,0.4535484,47506.0,47505.0,0.07584705]
[1633106945056,0.21985006,47506.0,47505.0,0.07584705]
[1633106945458,0.21983412,47506.0,47505.0,0.07584705]
[1633106946063,0.21854997,47506.0,47505.0,0.35353328]
[1633106946267,0.00125297,47506.0,47505.0,0.35353328]
[1633106946661,0.0013254,47506.0,47505.0,0.07584705]
[1633106947061,0.0013254,47506.0,47505.0,0.17223422]
[1633106947262,0.0013254,47506.0,47505.0,0.07584705]
[1633106947263,0.20342484,47506.0,47505.0,0.07584705]
[1633106947462,0.0013254,47506.0,47505.0,0.29314405]
[1633106948060,0.00129145,47506.0,47505.0,0.29314405]
[1633106948260,0.00129145,47506.0,47505.0,0.38974717]
[1633106949064,0.00132579,47506.0,47505.0,0.38974717]
[1633106949462,0.0025585,47506.0,47505.0,0.07584705]
[1633106949860,0.0025585,47506.0,47505.0,0.29314405]
[1633106950262,0.00132579,47506.0,47505.0,0.07584705]
[1633106950463,0.00132713,47506.0,47505.0,0.07584705]
[1633106951462,0.60125915,47506.0,47505.0,0.07584705]
[1633106951663,0.00125915,47506.0,47505.0,0.07584705]
[1633106952663,0.00133298,47506.0,47505.0,0.07584705]
[1633106953864,0.00132538,47506.0,47505.0,0.07584705]
[1633106954862,0.00131016,47506.0,47505.0,0.07584705]
[1633106956664,0.00126576,47506.0,47505.0,0.07584705]
[1633106957869,0.00124516,47506.0,47505.0,0.07584705]
[1633106958666,0.00124516,47506.0,47505.0,0.02584705]
[1633106958869,0.00131539,47506.0,47505.0,0.02584705]
[1633106960068,0.00125803,47506.0,47505.0,0.02584705]
[1633106961067,0.35127784,47506.0,47505.0,0.02584705]
[1633106961270,0.00127784,47506.0,47505.0,0.02584705]
[1633106961669,0.00127784,47506.0,47505.0,0.24314405]
[1633106961868,0.00127784,47506.0,47505.0,0.23314405]
[1633106962068,0.00127784,47506.0,47505.0,0.01584705]
[1633106962271,0.00127254,47506.0,47505.0,0.01584705]
[1633106963467,0.00126829,47506.0,47505.0,0.01584705]
[1633106964469,0.00136207,47506.0,47505.0,0.01584705]
[1633106965272,10.0,47508.0,47505.0,0.01584705]
[1633106965682,0.00126151,47507.0,47505.0,0.01584705]
[1633106965882,0.217297,47506.0,47505.0,0.01584705]
[1633106966683,0.50132215,47506.0,47505.0,0.01584705]
[1633106966883,0.00132215,47506.0,47505.0,0.01584705]
[1633106967886,0.00134832,47506.0,47505.0,0.01584705]
[1633106969083,0.00131313,47506.0,47505.0,0.01584705]
[1633106970087,0.00131313,47506.0,47505.0,0.29780076]
[1633106970288,0.00130222,47506.0,47505.0,0.29780076]
[1633106970801,0.00130222,47506.0,47505.0,0.51509776]
[1633106970989,0.00130222,47506.0,47505.0,0.01584705]
[1633106971390,0.00130222,47506.0,47505.0,0.11843966]
[1633106971590,0.00125066,47506.0,47505.0,0.11843966]
[1633106972590,0.0013391,47506.0,47505.0,0.11843966]
[1633106973789,0.00130645,47506.0,47505.0,0.11843966]
[1633106973990,0.00130645,47506.0,47505.0,0.01084705]
[1633106974892,0.00131213,47506.0,47505.0,0.01084705]
[1633106975093,0.00131213,47506.0,47504.0,0.48713158]
[1633106975492,0.00131213,47506.0,47504.0,0.315795]
[1633106975897,0.40134215,47505.0,47504.0,0.315795]
[1633106976095,0.00134215,47505.0,47504.0,0.315795]
[1633106977099,0.00134717,47505.0,47504.0,0.315795]
[1633106978298,0.00131371,47505.0,47504.0,0.315795]
[1633106979300,0.00123509,47505.0,47504.0,0.315795]
[1633106979702,0.00123509,47505.0,47504.0,0.538995]
[1633106980502,0.00127198,47505.0,47504.0,0.538995]
[1633106981500,0.00127198,47505.0,47504.0,0.315795]
[1633106981703,0.00126544,47505.0,47504.0,0.315795]
[1633106982303,0.00126544,47505.0,47504.0,0.305795]
[1633106982904,0.00124974,47505.0,47504.0,0.305795]
[1633106983906,0.00135833,47505.0,47504.0,0.305795]
[1633106984506,0.00135833,47505.0,47504.0,0.528995]
[1633106985106,0.00129454,47505.0,47504.0,0.528995]
[1633106986374,0.00127711,47505.0,47504.0,0.528995]
[1633106987307,0.0012502,47505.0,47504.0,0.528995]
[1633106988507,0.00134953,47505.0,47504.0,0.528995]
[1633106989710,0.00133809,47505.0,47504.0,0.528995]
[1633106990710,0.00130932,47505.0,47504.0,0.528995]
[1633106991909,0.00131265,47505.0,47504.0,0.528995]
[1633106992511,0.00131265,47505.0,47504.0,0.305795]
[1633106992912,0.00125634,47505.0,47504.0,0.305795]
[1633106993714,0.00125634,47505.0,47504.0,0.57817412]
[1633106993916,10.0,47514.0,47513.0,0.17907196]
[1633106994119,10.0,47514.0,47513.0,0.45955365]
[1633106994318,7.216e-05,47514.0,47513.0,0.45820315]
[1633106994517,0.36797433,47528.0,47521.0,0.31562]
[1633106994716,10.0,47525.0,47524.0,0.30900852]
[1633106994916,0.36797433,47528.0,47524.0,0.229013]
[1633106995119,0.00120957,47525.0,47524.0,0.0186]
[1633106995376,0.00251991,47525.0,47524.0,0.0186]
[1633106995517,0.00251991,47525.0,47514.0,0.2290129]
[1633106995718,0.00131034,47525.0,47518.0,0.420912]
[1633106995918,0.00131034,47525.0,47524.0,0.34964897]
[1633106996120,0.00131034,47525.0,47524.0,0.66343967]
[1633106996316,0.00131034,47525.0,47524.0,0.3137907]
[1633106996518,0.00132465,47525.0,47519.0,0.30722687]
[1633106996718,0.00132465,47525.0,47519.0,0.40445288]
[1633106996916,0.00132465,47525.0,47523.0,0.420835]
[1633106997117,0.00132465,47525.0,47524.0,0.0186]
[1633106997516,0.40135416,47525.0,47524.0,0.28847851]
[1633106997718,0.00135416,47525.0,47524.0,0.28847851]
[1633106998717,0.00132109,47525.0,47524.0,0.70931451]
[1633106999718,0.22458473,47525.0,47524.0,0.70931451]
[1633106999919,0.22453504,47525.0,47524.0,0.70931451]
[1633107000719,0.22453504,47525.0,47524.0,0.439436]
[1633107000919,0.22458156,47525.0,47524.0,0.439436]
[1633107001525,0.22582858,47525.0,47524.0,0.0186]
[1633107001723,0.44365568,47525.0,47523.0,0.631253]
[1633107001929,0.44365568,47525.0,47521.0,0.210415]
[1633107001930,0.00127396,47524.0,47521.0,0.210415]
[1633107002123,0.00127475,47522.0,47521.0,0.210415]
[1633107002323,0.10838619,47521.0,47509.0,0.9468]
[1633107002524,0.10838619,47521.0,47501.0,0.62673039]
[1633107002525,0.4476776,47513.0,47506.0,0.7809]
[1633107002722,0.35607105,47513.0,47502.0,1.0159]
[1633107002922,0.35607105,47513.0,47502.0,0.0186]
[1633107003323,0.35607105,47513.0,47510.0,0.210461]
[1633107003324,0.00126114,47513.0,47510.0,0.210461]
[1633107003526,0.00261091,47513.0,47510.0,0.420931]
[1633107003723,0.00261091,47513.0,47511.0,0.31576]
[1633107004721,0.00254412,47513.0,47511.0,0.31576]
[1633107005725,0.00258168,47513.0,47511.0,0.31576]
[1633107006924,0.00253028,47513.0,47511.0,0.31576]
[1633107008126,0.00134053,47512.0,47511.0,0.31576]
[1633107009127,1.60129546,47512.0,47511.0,0.31576]
[1633107009324,0.00129546,47512.0,47511.0,0.31576]
[1633107010325,0.00134843,47512.0,47511.0,0.31576]
[1633107011126,0.20244518,47512.0,47511.0,0.31576]
[1633107011525,0.20236521,47512.0,47511.0,0.31576]
[1633107011926,0.20236521,47512.0,47511.0,0.42576]
[1633107012527,0.20236091,47512.0,47511.0,0.42576]
[1633107013526,0.20236091,47512.0,47511.0,0.41110128]
[1633107013731,0.2024386,47512.0,47511.0,0.41110128]
[1633107013927,0.29092278,47512.0,47511.0,0.41110128]
[1633107014128,0.29092278,47512.0,47511.0,0.39643568]
[1633107014330,0.29145288,47512.0,47511.0,0.39643568]
[1633107014730,0.2029687,47512.0,47511.0,0.3817493]
[1633107014931,0.20233751,47512.0,47511.0,0.3817493]
[1633107015731,0.27649256,47512.0,47511.0,0.3817493]
[1633107015931,0.276597,47512.0,47511.0,0.3817493]
[1633107016397,0.20244195,47512.0,47511.0,0.3817493]
[1633107017132,0.20240503,47512.0,47511.0,0.3817493]
[1633107017334,0.28549083,47512.0,47511.0,0.11]
[1633107017535,0.20240503,47512.0,47511.0,0.11]
[1633107018334,0.20241419,47512.0,47511.0,0.11]
[1633107019394,0.20238061,47512.0,47511.0,0.11]
[1633107020535,0.20237215,47512.0,47511.0,0.11]
[1633107021535,0.20109675,47512.0,47511.0,0.11]
[1633107021736,0.20241534,47512.0,47511.0,0.11]
[1633107022738,0.20236482,47512.0,47511.0,0.11]
[1633107023337,0.20236482,47512.0,47511.0,0.1]
[1633107023936,0.20242307,47512.0,47511.0,0.1]
[1633107024938,0.20245241,47512.0,47511.0,0.1]
[1633107026140,0.20234074,47512.0,47511.0,0.1]
[1633107027139,0.20109675,47512.0,47511.0,0.1]
[1633107027340,0.20238451,47512.0,47511.0,0.1]
[1633107027744,0.203632,47512.0,47511.0,0.1]
[1633107027944,0.2041621,47512.0,47511.0,0.1]
[1633107028406,0.20413617,47512.0,47511.0,0.1]
[1633107028541,0.20360607,47512.0,47511.0,0.1]
[1633107029543,0.20361133,47512.0,47511.0,0.1]
[1633107030544,0.20364503,47512.0,47511.0,0.1]
[1633107031745,0.20359523,47512.0,47511.0,0.1]
[1633107031946,0.20412533,47512.0,47511.0,0.1]
[1633107032746,0.20287434,47512.0,47511.0,0.1]
[1633107032947,0.20420577,47512.0,47511.0,0.1]
[1633107033347,0.20367567,47512.0,47511.0,0.1]
[1633107033747,0.20420577,47512.0,47511.0,0.1]
[1633107034547,0.20360642,47512.0,47511.0,0.1]
[1633107034952,0.20413652,47512.0,47511.0,0.1]
[1633107035149,0.20414963,47512.0,47511.0,0.1]
[1633107035349,0.20361953,47512.0,47511.0,0.1]
[1633107036151,0.20006953,47512.0,47511.0,0.1]
[1633107036351,0.2001246,47512.0,47511.0,0.1]
[1633107036558,0.1953246,47512.0,47511.0,0.1]
[1633107036751,0.4131517,47512.0,47511.0,0.1]
[1633107037553,0.41308199,47512.0,47511.0,0.1]
[1633107037753,0.41255189,47512.0,47511.0,0.1]
[1633107038151,0.41255189,47512.0,47511.0,0.09000001]
[1633107038550,0.41255525,47512.0,47511.0,0.09000001]
[1633107038953,0.41308535,47512.0,47511.0,0.09000001]
[1633107039751,0.41259893,47512.0,47511.0,0.09000001]
[1633107040351,0.19530193,47512.0,47511.0,0.09000001]
[1633107040755,0.1958652,47512.0,47511.0,0.09000001]
[1633107040958,0.1953351,47512.0,47511.0,0.09000001]
[1633107041153,0.19408761,47512.0,47511.0,0.09000001]
[1633107043419,0.19402333,47512.0,47511.0,0.09000001]
[1633107044555,0.19403991,47512.0,47511.0,0.09000001]
[1633107045961,0.18903991,47512.0,47511.0,0.09000001]
[1633107046962,0.18903991,47512.0,47503.0,0.210518]
[1633107047165,0.18903991,47512.0,47494.0,0.42105]
[1633107047166,0.18203334,47500.0,47496.0,0.1]
[1633107047362,0.00128398,47497.0,47496.0,0.1]
[1633107047562,0.21858098,47497.0,47491.0,0.2107]
[1633107047763,0.00134823,47494.0,47491.0,0.325902]
[1633107047962,0.22486226,47492.0,47491.0,0.325902]
[1633107048162,0.35207726,47494.0,47493.0,0.0002286]
[1633107048765,0.35207726,47494.0,47493.0,0.3161056]
[1633107048963,0.35198191,47494.0,47493.0,0.3161056]
[1633107049565,0.00125288,47494.0,47493.0,0.3161056]
[1633107049964,0.00125428,47494.0,47493.0,0.3161056]
[1633107050564,0.29846015,47494.0,47493.0,0.3161056]
[1633107050962,0.00125428,47494.0,47493.0,0.3161056]
[1633107051162,0.00127961,47494.0,47493.0,0.3161056]
[1633107051366,0.00127961,47494.0,47493.0,0.0002286]
[1633107052164,0.20317978,47495.0,47493.0,0.0002286]
[1633107052431,0.00133771,47494.0,47493.0,0.0002286]
[1633107052565,0.00133771,47494.0,47491.0,0.641739]
[1633107052768,0.00133771,47494.0,47493.0,0.0002286]
[1633107053367,0.00127041,47494.0,47493.0,0.0002286]
[1633107054567,0.00125493,47494.0,47493.0,0.0002286]
[1633107054770,0.28271956,47494.0,47493.0,0.0002286]
[1633107054970,0.00125493,47494.0,47493.0,0.0002286]
[1633107055451,0.00125493,47494.0,47493.0,0.0402286]
[1633107055572,0.00129666,47494.0,47493.0,0.0402286]
[1633107056573,0.00253826,47494.0,47493.0,0.0402286]
[1633107056770,0.00304236,47494.0,47493.0,0.0402286]
[1633107056971,0.28979907,47494.0,47493.0,0.0402286]
[1633107057172,0.28605721,47494.0,47493.0,0.0402286]
[1633107057372,0.00304236,47494.0,47493.0,0.0402286]
[1633107057571,0.00251226,47494.0,47493.0,0.0402286]
[1633107057773,0.00251726,47494.0,47493.0,0.0402286]
[1633107058173,0.00251726,47494.0,47493.0,0.02624303]
[1633107058773,0.00251726,47494.0,47493.0,0.13624303]
[1633107058977,0.00256985,47494.0,47493.0,0.13624303]
[1633107059375,0.51013874,47494.0,47493.0,0.13624303]
[1633107059576,0.51142937,47494.0,47493.0,0.13624303]
[1633107059774,0.51195947,47494.0,47493.0,0.13624303]
[1633107060177,3.01063122,47494.0,47493.0,0.13491093]
[1633107060577,0.51063122,47494.0,47493.0,0.13491093]
[1633107061177,0.51063122,47494.0,47493.0,0.13358939]
[1633107061178,3.01063122,47494.0,47493.0,0.13358939]
[1633107061439,1.12035933,47494.0,47493.0,0.13358939]
[1633107061578,1.62035933,47494.0,47493.0,0.13358939]
[1633107061780,0.72035933,47494.0,47493.0,0.13358939]
[1633107062376,0.72035933,47494.0,47493.0,0.13235401]
[1633107063180,1.00931926,47494.0,47493.0,0.13235401]
[1633107063379,2.12931926,47494.0,47493.0,0.13235401]
[1633107063578,1.84035933,47494.0,47493.0,0.13107785]
[1633107063977,2.5,47493.0,47491.0,0.00954332]
[1633107064179,2.5,47493.0,47471.0,0.39926639]
[1633107064180,0.15822552,47478.0,47471.0,0.22060132]
[1633107064461,1.1,47466.0,47465.0,0.2001]
[1633107064582,2.22879488,47466.0,47464.0,0.0007635]
[1633107064781,0.5592154,47465.0,47464.0,0.0007635]
[1633107064985,0.63409654,47465.0,47464.0,0.0007635]
[1633107065179,1.17350847,47465.0,47464.0,0.00111264]
[1633107065377,1.2753378,47465.0,47464.0,0.00111264]
[1633107065779,1.27660278,47465.0,47464.0,0.00111264]
[1633107065981,1.27660278,47465.0,47451.0,0.01]
[1633107065982,0.00032736,47464.0,47451.0,0.01]
[1633107066180,0.0186,47463.0,47451.0,0.01]
[1633107066382,0.20805491,47452.0,47451.0,0.01]
[1633107066580,0.53615787,47452.0,47451.0,0.01]
[1633107066782,0.53668797,47452.0,47451.0,0.01015655]
[1633107066986,0.53743332,47452.0,47451.0,0.01015655]
[1633107067783,0.49083347,47452.0,47451.0,0.01015655]
[1633107068184,0.27978509,47452.0,47451.0,0.01015655]
[1633107068784,0.28031519,47452.0,47451.0,0.01015655]
[1633107069185,0.49888777,47452.0,47451.0,0.01015655]
[1633107069588,0.49835767,47452.0,47451.0,0.01015655]
[1633107069985,0.21863978,47452.0,47451.0,0.01015655]
[1633107070385,0.21909185,47452.0,47451.0,0.01015655]
[1633107071184,0.00179485,47452.0,47451.0,0.01015655]
[1633107071587,0.00188351,47452.0,47451.0,0.01015655]
[1633107071785,0.00135341,47452.0,47451.0,0.01015655]
[1633107071988,10.0,47453.0,47451.0,0.01015655]
[1633107071989,9.03116314,47453.0,47451.0,0.23335655]
[1633107072191,0.09999313,47477.0,47452.0,0.28621397]
[1633107072388,8.60984014,47463.0,47461.0,0.00125636]
[1633107072588,0.0012653,47469.0,47462.0,0.0186]
[1633107072787,8.60984014,47468.0,47462.0,0.0186]
[1633107072990,8.79567838,47468.0,47462.0,0.0186]
[1633107073194,2.50129869,47463.0,47452.0,0.00154803]
[1633107073466,1.15,47452.0,47451.0,0.00154803]
[1633107073588,0.00121972,47453.0,47451.0,0.00154803]
[1633107073786,0.00124037,47452.0,47451.0,0.00154803]
[1633107073989,0.206029,47452.0,47451.0,0.00154803]
[1633107074187,0.606029,47452.0,47451.0,0.00154803]
[1633107074388,0.48111144,47452.0,47451.0,0.00154803]
[1633107074987,0.48116227,47452.0,47451.0,0.00154803]
[1633107075188,0.0012912,47452.0,47451.0,0.00154803]
[1633107075990,0.00131859,47452.0,47451.0,0.00154803]
[1633107077190,0.00128913,47452.0,47451.0,0.00154803]
[1633107077394,0.00128913,47452.0,47451.0,0.22474803]
[1633107077591,0.00128913,47452.0,47451.0,0.00154803]
[1633107078190,0.09284982,47462.0,47451.0,0.00154803]
[1633107078392,0.0012445,47452.0,47451.0,0.00154803]
[1633107079189,0.2694049,47452.0,47451.0,0.00154803]
[1633107079390,0.26943971,47452.0,47451.0,0.00154803]
[1633107080591,0.26946809,47452.0,47451.0,0.00154803]
[1633107081592,0.26945985,47452.0,47451.0,0.00154803]
[1633107081792,0.26945985,47452.0,47451.0,0.00139323]
[1633107081996,0.26945985,47452.0,47451.0,0.00153869]
[1633107082795,0.00129945,47452.0,47451.0,0.00153869]
[1633107082994,0.75125875,47452.0,47451.0,0.00153869]
[1633107083194,0.00125875,47452.0,47451.0,0.00153869]
[1633107084196,0.00129208,47452.0,47451.0,0.00153869]
[1633107085460,0.00124194,47452.0,47451.0,0.00153869]
[1633107085800,0.00124194,47452.0,47441.0,0.09683014]
[1633107085998,0.09289067,47452.0,47446.0,0.01101142]
[1633107086400,0.00128367,47449.0,47446.0,0.01101142]
[1633107086602,0.0005301,47448.0,47446.0,0.01101142]
[1633107086802,0.00128367,47449.0,47446.0,0.00768142]
[1633107087000,0.00128367,47449.0,47447.0,6.022e-05]
[1633107087603,1.25123996,47448.0,47447.0,6.022e-05]
[1633107087802,0.00123996,47448.0,47447.0,6.022e-05]
[1633107088603,1.60133667,47448.0,47447.0,6.022e-05]
[1633107089004,0.00133667,47448.0,47447.0,6.022e-05]
[1633107089805,1.05132001,47448.0,47447.0,6.022e-05]
[1633107090003,0.00132001,47448.0,47447.0,6.022e-05]
[1633107090404,0.00132001,47448.0,47446.0,0.00274164]
[1633107091005,0.0012771,47447.0,47446.0,0.00274164]
[1633107092003,0.11672541,47450.0,47446.0,0.00274164]
[1633107092205,0.001285,47447.0,47446.0,0.00274164]
[1633107093208,0.00133434,47447.0,47446.0,0.00274164]
[1633107093409,0.00262714,47447.0,47446.0,0.00274164]
[1633107094010,0.00133434,47447.0,47446.0,0.00274164]
[1633107094477,0.00125383,47447.0,47446.0,0.00274164]
[1633107095015,0.00125383,47447.0,47446.0,0.31890664]
[1633107095411,0.00130179,47447.0,47446.0,0.31890664]
[1633107096612,0.00130804,47447.0,47446.0,0.31890664]
[1633107097016,0.00130804,47447.0,47445.0,0.0002]
[1633107097616,0.00135504,47446.0,47445.0,0.0002]
[1633107099015,0.0013232,47446.0,47445.0,0.0002]
[1633107099418,0.0013232,47446.0,47444.0,0.316372]
[1633107099419,0.15955403,47444.0,47441.0,0.0002]
[1633107099617,0.67208727,47444.0,47441.0,0.0002]
[1633107099818,0.3786665,47444.0,47441.0,0.0002]
[1633107100017,0.37991911,47444.0,47441.0,0.0002]
[1633107100420,0.217297,47443.0,47440.0,0.0004]
[1633107100619,2.50121475,47441.0,47440.0,0.0004]
[1633107100818,2.71904185,47441.0,47440.0,0.0004]
[1633107101217,2.72038507,47441.0,47440.0,0.0004]
[1633107101419,0.22038507,47441.0,47440.0,0.0004]
[1633107101620,0.51497801,47441.0,47440.0,0.0004]
[1633107102420,0.22040418,47441.0,47440.0,0.0004]
[1633107102822,0.22040418,47441.0,47417.0,0.21353164]
[1633107103020,0.09316249,47436.0,47431.0,0.00776378]
[1633107103221,0.66218295,47435.0,47431.0,0.00776378]
[1633107103420,0.00128072,47434.0,47431.0,0.00776378]
[1633107103820,0.00128072,47434.0,47433.0,0.00016866]
[1633107104422,0.21857772,47434.0,47433.0,0.00016866]
[1633107104621,0.21856557,47434.0,47433.0,0.00016866]
[1633107105222,0.41194843,47434.0,47433.0,0.00016866]
[1633107105623,0.41323765,47434.0,47433.0,0.00016866]
[1633107106220,0.41376775,47434.0,47433.0,0.00016866]
[1633107106824,0.41372248,47434.0,47433.0,0.00016866]
[1633107107022,0.41319238,47434.0,47433.0,0.00016866]
[1633107107421,0.41372248,47434.0,47433.0,0.00016866]
[1633107108022,0.41370399,47434.0,47433.0,0.00016866]
[1633107108223,0.41317389,47434.0,47433.0,0.00016866]
[1633107108422,0.41370399,47434.0,47433.0,0.00016866]
[1633107109022,0.4120119,47434.0,47433.0,0.00016866]
[1633107109823,0.412542,47434.0,47433.0,0.00016866]
[1633107110228,0.41248935,47434.0,47433.0,0.00016866]
[1633107110426,0.41248935,47434.0,47419.0,0.0004]
[1633107110427,0.217297,47433.0,47419.0,0.0004]
[1633107110626,0.2953655,47432.0,47427.0,0.316284]
[1633107110826,0.00127939,47434.0,47427.0,0.316284]
[1633107111228,0.00132614,47431.0,47427.0,0.316284]
[1633107112426,0.00127562,47429.0,47427.0,0.316284]
[1633107112827,0.00127562,47429.0,47428.0,6.024e-05]
[1633107113428,1.20128382,47429.0,47428.0,6.024e-05]
[1633107113630,0.00128382,47429.0,47428.0,6.024e-05]
[1633107114631,0.00135272,47429.0,47428.0,6.024e-05]
[1633107114829,0.00135272,47429.0,47428.0,1.40006024]
[1633107115831,0.00127246,47429.0,47428.0,1.40006024]
[1633107116832,0.00130201,47429.0,47428.0,1.40006024]
[1633107118037,0.00130052,47429.0,47428.0,1.40006024]
[1633107118840,0.00130052,47429.0,47428.0,1.6431113]
[1633107119042,0.00126605,47429.0,47428.0,2.47956038]
[1633107119237,0.00126605,47429.0,47428.0,2.86067273]
[1633107119439,0.15955403,47444.0,47429.0,1.15]
[1633107119641,0.15955403,47444.0,47437.0,0.00125735]
[1633107119838,0.15955403,47444.0,47440.0,0.316124]
[1633107120039,0.15955403,47444.0,47441.0,0.49373463]
[1633107120240,0.15955403,47444.0,47443.0,0.00124673]
[1633107120438,0.15955403,47444.0,47443.0,0.23714373]
[1633107120638,0.15966243,47444.0,47443.0,0.235897]
[1633107121039,0.15966243,47444.0,47443.0,0.459097]
[1633107121238,0.15966243,47444.0,47443.0,0.959097]
[1633107121498,0.16095521,47444.0,47443.0,0.959097]
[1633107122439,0.16090249,47444.0,47443.0,0.959097]
[1633107123642,0.16101589,47444.0,47443.0,0.959097]
[1633107124641,0.16089872,47444.0,47443.0,0.735897]
[1633107125648,0.15966243,47444.0,47443.0,0.735897]
[1633107125843,0.15978702,47444.0,47443.0,0.735897]
[1633107127048,0.15971129,47444.0,47443.0,0.235897]
[1633107128046,0.1597719,47444.0,47443.0,0.235897]
[1633107128450,0.40496675,47444.0,47443.0,0.217297]
[1633107128652,0.40496675,47444.0,47435.0,0.421624]
[1633107128653,0.09527755,47438.0,47435.0,0.421624]
[1633107128848,0.40496675,47444.0,47433.0,0.0186]
[1633107128849,0.00128232,47439.0,47436.0,0.217464]
[1633107129048,0.0005301,47438.0,47436.0,0.217464]
[1633107129249,0.00180499,47438.0,47437.0,1.4]
[1633107129452,0.00127489,47438.0,47437.0,1.4]
[1633107129652,0.34273358,47438.0,47437.0,1.4]
[1633107129849,0.34273358,47438.0,47429.0,0.526881]
[1633107129850,0.46259186,47438.0,47429.0,0.526881]
[1633107130050,0.29026044,47437.0,47430.0,0.5]
[1633107130249,0.0005301,47436.0,47430.0,0.5]
[1633107130520,0.0005301,47436.0,47431.0,0.210829]
[1633107130521,0.0012934,47434.0,47431.0,0.210829]
[1633107130651,0.0012934,47434.0,47433.0,1.47301261]
[1633107130851,0.0012934,47434.0,47433.0,1.4]
[1633107131656,0.00130556,47434.0,47433.0,1.4]
[1633107131851,0.00130556,47434.0,47433.0,1.47029667]
[1633107132751,0.00127497,47434.0,47433.0,1.47029667]
[1633107133353,0.00180507,47434.0,47433.0,1.47029667]
[1633107133952,0.00180879,47434.0,47433.0,1.4]
[1633107134953,0.0012711,47434.0,47433.0,1.4]
[1633107135563,0.00253651,47434.0,47433.0,1.4]
[1633107135959,0.00253651,47434.0,47433.0,1.395]
[1633107136156,0.00263013,47434.0,47433.0,1.395]
[1633107136356,0.00263013,47434.0,47428.0,6.024e-05]
[1633107136619,0.88808252,47432.0,47431.0,1.4]
[1633107136819,0.08808252,47432.0,47431.0,1.4]
[1633107137020,0.45774693,47432.0,47431.0,1.617464]
[1633107137221,0.77997512,47432.0,47431.0,1.617464]
[1633107137424,0.77997512,47432.0,47428.0,6.024e-05]
[1633107137621,2.50127093,47429.0,47428.0,6.024e-05]
[1633107137819,11.24537107,47429.0,47428.0,6.024e-05]
[1633107138022,8.96283507,47429.0,47428.0,6.024e-05]
[1633107138221,8.96654559,47429.0,47428.0,6.024e-05]
[1633107139024,8.96654559,47429.0,47423.0,0.211292]
[1633107139025,0.217464,47428.0,47423.0,0.211292]
[1633107139224,0.00122044,47424.0,47423.0,0.0004]
[1633107139423,0.23728444,47424.0,47423.0,0.0004]
[1633107139624,0.53880643,47424.0,47423.0,0.00046025]
[1633107140222,0.52145664,47424.0,47423.0,0.00046025]
[1633107140425,1.06982429,47424.0,47423.0,0.00046025]
[1633107140622,0.78728444,47424.0,47423.0,0.00046025]
[1633107141023,1.07240314,47424.0,47423.0,0.00026025]
[1633107141223,1.07240314,47424.0,47423.0,4.025e-05]
[1633107141429,3.02240314,47424.0,47423.0,4.025e-05]
[1633107142025,3.02489245,47424.0,47423.0,4.025e-05]
[1633107142425,0.00127183,47423.0,47420.0,0.0002]
[1633107142628,0.24133511,47419.0,47418.0,0.0004]
[1633107142828,0.47860739,47419.0,47418.0,0.0004]
[1633107143027,9.08844753,47419.0,47418.0,0.00046025]
[1633107143630,9.08844753,47419.0,47413.0,0.19750025]
[1633107143631,0.07939964,47417.0,47413.0,0.19750025]
[1633107143828,0.00120987,47414.0,47413.0,0.19750025]
[1633107144027,0.30220076,47414.0,47413.0,0.19750025]
[1633107144228,0.30220076,47414.0,47413.0,0.19756051]
[1633107144829,0.30353841,47414.0,47413.0,0.19756051]
[1633107145431,0.52100241,47414.0,47413.0,6.026e-05]
[1633107145635,0.81989929,47414.0,47411.0,0.0102]
[1633107145834,0.00121223,47412.0,47409.0,0.0002]
[1633107146034,0.23851913,47411.0,47409.0,0.0002]
[1633107146233,0.54394169,47411.0,47409.0,0.0002]
[1633107146437,0.23851913,47411.0,47409.0,0.0002]
[1633107146835,0.00245513,47411.0,47409.0,0.0002]
[1633107147033,0.00131,47411.0,47409.0,0.0002]
[1633107148032,0.0012986,47411.0,47409.0,0.0002]
[1633107148634,0.2187626,47411.0,47409.0,0.0002]
[1633107150428,0.21876003,47411.0,47410.0,0.0004]
[1633107150619,0.22000948,47411.0,47410.0,0.0004]
[1633107153521,0.38635948,47411.0,47410.0,0.0004]
[1633107154722,0.40495948,47411.0,47410.0,0.00034]
[1633107155124,0.40495948,47411.0,47396.0,0.0002]
[1633107155323,0.00124442,47401.0,47399.0,0.00014]
[1633107155527,8.61108456,47401.0,47399.0,0.00014]
[1633107155726,8.61108456,47401.0,47399.0,0.3501189]
[1633107155930,8.60984014,47401.0,47400.0,0.49809432]
[1633107156125,8.60984014,47401.0,47400.0,0.2249586]
[1633107156325,0.00129603,47411.0,47400.0,0.2237301]